bitfinex/quotes_SOLUSD_20250507
["timestamp","ask_amount","ask_price","bid_price","bid_amount"]
[1746607708376,14.07476071,148.09,148.05,20.82923554]
[1746607712974,153.94,148.11,148.06,14.07476071]
[1746607713170,14.07476071,148.1,148.06,14.07476071]
[1746607713380,137.7,148.11,148.06,14.07476071]
[1746607713583,14.07476071,148.1,148.06,14.07476071]
[1746607714781,14.07476071,148.1,148.07,6.7535625]
[1746607716082,137.7,148.11,148.07,6.7535625]
[1746607716381,14.07476071,148.1,148.07,6.7535625]
[1746607717181,14.07476071,148.09,148.07,6.7535625]
[1746607717782,14.07476071,148.1,148.07,6.7535625]
[1746607718582,137.7,148.11,148.07,6.7535625]
[1746607718780,16.22,148.12,148.09,14.07476071]
[1746607719088,16.22,148.12,148.1,6.75219446]
[1746607720483,16.22,148.12,148.09,6.75265041]
[1746607720985,30.29476071,148.12,148.09,6.75265041]
[1746607723893,14.07476071,148.12,148.09,6.75265041]
[1746607724788,14.07476071,148.11,148.09,6.75265041]
[1746607725791,14.07476071,148.12,148.08,14.07476071]
[1746607728405,14.07476071,148.1,148.06,6.75401864]
[1746607728575,14.07476071,148.1,148.06,20.82877935]
[1746607730091,14.07476071,148.09,148.06,6.75401864]
[1746607732074,13.14819762,148.12,148.06,6.75401864]
[1746607732494,14.07476071,148.09,148.06,6.75401864]
[1746607733795,14.07476071,148.08,148.06,6.75401864]
[1746607735398,14.07476071,148.09,148.05,6.75447483]
[1746607735775,146.06593173,148.11,148.05,20.82923554]
[1746607735989,14.07476071,148.09,148.05,20.82923554]
[1746607738474,14.07476071,148.09,148.05,6.75447483]
[1746607738682,14.07476071,148.08,148.05,6.75447483]
[1746607739798,9.00191417,148.08,148.05,6.75447483]
[1746607741398,9.00191417,148.08,148.04,32.75479208]
[1746607741702,9.00191417,148.07,148.04,32.75479208]
[1746607744528,9.00191417,148.05,147.99,23.65]
[1746607744815,9.00191417,148.03,147.99,32.65191417]
[1746607744984,9.00191417,148.03,147.99,58.65191417]
[1746607745382,9.00191417,148.04,148.0,9.00191417]
[1746607745595,9.00191417,148.04,148.01,6.75630024]
[1746607745822,9.00191417,148.04,148.0,9.00191417]
[1746607745823,14.07373672,148.03,148.0,6.75672405]
[1746607746011,14.07373672,148.02,148.0,6.75672405]
[1746607746203,14.07373672,148.02,147.99,32.7570321]
[1746607746718,14.07373672,148.02,147.99,6.7570321]
[1746607748926,14.07373672,148.03,147.99,6.7570321]
[1746607749329,14.07373672,148.03,147.99,20.83076882]
[1746607753430,14.07373672,148.02,147.99,20.83076882]
[1746607753627,14.07373672,148.02,147.99,6.7570321]
[1746607754549,14.07373672,148.0,147.97,6.75812664]
[1746607754713,6.253,148.02,147.97,6.75812664]
[1746607754714,14.07373672,147.99,147.97,6.75812664]
[1746607754913,14.07373672,147.99,147.96,6.75836773]
[1746607755533,14.07373672,147.98,147.95,6.7588969]
[1746607757343,14.07373672,147.97,147.95,6.7588969]
[1746607758731,14.07373672,147.98,147.95,6.7588969]
[1746607758941,137.7,148.0,147.97,14.07373672]
[1746607759235,137.7,148.0,147.98,14.07373672]
[1746607760336,16.2,148.01,147.98,14.07373672]
[1746607761132,30.27373672,148.01,147.93,23.65983911]
[1746607761334,30.27373672,148.01,147.96,14.07373672]
[1746607762440,30.27373672,148.01,147.97,6.75812664]
[1746607762622,14.07373672,148.0,147.97,6.75812664]
[1746607762944,14.07373672,147.98,147.94,6.75949709]
[1746607763311,14.07373672,147.98,147.94,20.83323381]
[1746607764839,14.07373672,147.97,147.93,6.75975869]
[1746607765046,14.07373672,147.97,147.93,20.83349541]
[1746607767736,14.07373672,147.97,147.93,6.75975869]
[1746607768044,14.07373672,147.96,147.93,6.75975869]
[1746607768425,14.07373672,147.97,147.93,20.83349541]
[1746607768746,14.07373672,147.98,147.94,14.07373672]
[1746607768923,14.07373672,147.98,147.92,6.76041103]
[1746607769131,14.07373672,147.98,147.94,14.07373672]
[1746607771947,14.07373672,147.97,147.93,6.75959486]
[1746607772250,14.07373672,147.96,147.92,20.8339366]
[1746607772831,14.07373672,147.96,147.92,6.76019988]
[1746607773032,14.07373672,147.96,147.92,20.8339366]
[1746607773545,137.7,147.97,147.92,6.76019988]
[1746607773546,14.07373672,147.95,147.92,6.76019988]
[1746607773742,150.92025007,147.97,147.92,6.76019988]
[1746607774038,14.07373672,147.95,147.91,20.83438436]
[1746607776045,14.07373672,147.94,147.91,6.76064764]
[1746607776741,14.07373672,147.93,147.9,6.76112877]
[1746607777446,14.07373672,147.94,147.9,20.83486549]
[1746607778446,137.7,147.95,147.93,14.07373672]
[1746607778639,137.7,147.95,147.91,14.07373672]
[1746607778831,137.7,147.95,147.94,14.07373672]
[1746607779144,137.7,147.95,147.93,14.07373672]
[1746607779949,137.7,147.95,147.93,20.83337818]
[1746607782434,16.2,147.96,147.93,20.83337818]
[1746607782623,30.27373672,147.96,147.92,14.07373672]
[1746607783942,14.07373672,147.96,147.92,14.07373672]
[1746607784848,14.07373672,147.94,147.9,14.07373672]
[1746607785147,14.07373672,147.93,147.89,20.83551912]
[1746607785854,137.7,147.95,147.92,14.07373672]
[1746607786037,151.77373672,147.98,147.92,40.07373672]
[1746607786239,151.77373672,147.98,147.94,14.07373672]
[1746607786838,151.77373672,147.98,147.95,6.75904021]
[1746607787453,151.77373672,147.98,147.94,20.83301279]
[1746607790755,14.07373672,147.97,147.94,6.75927607]
[1746607791061,14.07373672,147.96,147.94,6.75927607]
[1746607792560,14.07373672,147.95,147.94,6.75927607]
[1746607792768,14.07373672,147.95,147.92,26.0]
[1746607792769,14.07373672,147.96,147.93,6.75995403]
[1746607793438,14.07373672,147.96,147.87,84.0814]
[1746607793439,14.07373672,147.94,147.89,14.07373672]
[1746607793757,14.07373672,147.93,147.9,26.0]
[1746607793963,14.07373672,147.92,147.88,20.83597637]
[1746607794279,14.07373672,147.92,147.89,26.0]
[1746607794838,14.07373672,147.92,147.89,32.76157382]
[1746607796363,14.07373672,147.9,147.87,26.0]
[1746607796551,14.07373672,147.91,147.87,40.07373672]
[1746607796749,14.07373672,147.91,147.87,14.07373672]
[1746607796950,14.07373672,147.91,147.86,26.0]
[1746607797152,14.07373672,147.91,147.87,14.07373672]
[1746607798672,14.07373672,147.91,147.87,6.76269696]
[1746607798854,14.07373672,147.9,147.87,6.76269696]
[1746607804355,14.07373672,147.89,147.87,6.76269696]
[1746607804566,14.07373672,147.88,147.87,6.76269696]
[1746607804863,14.07373672,147.88,147.85,6.76361176]
[1746607805080,14.07373672,147.87,147.85,6.76361176]
[1746607806077,14.07373672,147.88,147.85,6.76361176]
[1746607807473,14.07373672,147.87,147.85,6.76361176]
[1746607807778,14.07373672,147.86,147.84,32.76396754]
[1746607807960,14.07373672,147.85,147.83,6.7644893]
[1746607808581,14.07373672,147.86,147.83,6.7644893]
[1746607809083,14.07373672,147.85,147.82,6.76489206]
[1746607809780,14.07373672,147.85,147.79,14.07373672]
[1746607809781,14.07373672,147.83,147.79,14.07373672]
[1746607810090,14.07373672,147.83,147.8,6.76579042]
[1746607812283,14.07373672,147.82,147.79,6.76614329]
[1746607812664,14.07373672,147.81,147.79,6.76614329]
[1746607814091,137.7,147.84,147.79,37.75577418]
[1746607814385,14.07373672,147.84,147.8,14.07373672]
[1746607814679,137.7,147.87,147.8,14.07373672]
[1746607814886,14.07373672,147.85,147.81,14.07373672]
[1746607815273,137.7,147.86,147.81,14.07373672]
[1746607815484,14.07373672,147.85,147.81,14.07373672]
[1746607815788,14.07373672,147.84,147.81,14.07373672]
[1746607816168,137.7,147.86,147.82,6.76498444]
[1746607816483,14.07373672,147.83,147.79,6.76635766]
[1746607816694,14.07373672,147.84,147.79,6.76635766]
[1746607816695,14.07373672,147.81,147.79,6.76635766]
[1746607816983,14.07373672,147.81,147.78,32.76664772]
[1746607817185,14.07373672,147.8,147.78,6.76664772]
[1746607819268,14.07373672,147.79,147.77,6.76708766]
[1746607819782,14.07373672,147.8,147.77,6.76708766]
[1746607820785,14.07373672,147.79,147.77,6.76708766]
[1746607821903,14.07373672,147.78,147.77,6.76708766]
[1746607822507,137.7,147.81,147.77,6.76708766]
[1746607822703,14.07373672,147.8,147.77,6.76708766]
[1746607824657,137.7,147.81,147.77,6.76708766]
[1746607824794,14.07373672,147.79,147.77,6.76708766]
[1746607825418,137.7,147.81,147.77,6.76708766]
[1746607825626,14.07373672,147.79,147.77,6.76708766]
[1746607826092,137.7,147.81,147.78,14.07373672]
[1746607826300,137.7,147.81,147.79,14.07373672]
[1746607826592,137.7,147.81,147.8,14.07373672]
[1746607826793,30.25373672,147.84,147.8,14.07373672]
[1746607827190,16.18,147.84,147.8,14.07373672]
[1746607827381,16.18,147.84,147.81,14.07373672]
[1746607827625,137.7,147.85,147.82,14.07373672]
[1746607827799,137.7,147.85,147.83,14.07373672]
[1746607828623,137.7,147.85,147.83,6.76412404]
[1746607832602,137.7,147.85,147.83,20.83786076]
[1746607832810,137.7,147.85,147.82,14.07373672]
[1746607835020,137.7,147.85,147.83,6.76452682]
[1746607837723,151.77373672,147.85,147.8,23.68011157]
[1746607837922,151.77373672,147.85,147.81,14.07373672]
[1746607839212,151.77373672,147.85,147.82,14.07373672]
[1746607839416,137.7,147.85,147.82,14.07373672]
[1746607839606,151.77373672,147.85,147.82,14.07373672]
[1746607840930,137.7,147.85,147.83,6.76452682]
[1746607841116,151.77373672,147.85,147.83,6.76452682]
[1746607846926,151.77373672,147.85,147.82,6.76498444]
[1746607852336,137.7,147.85,147.82,6.76498444]
[1746607852642,151.77373672,147.85,147.82,6.76498444]
[1746607854335,14.07373672,147.84,147.81,20.83896691]
[1746607854652,14.07373672,147.83,147.81,6.76523019]
[1746607854830,14.07373672,147.83,147.8,6.76569763]
[1746607855349,144.46370474,147.85,147.8,20.83943435]
[1746607855350,14.07373672,147.84,147.8,20.83943435]
[1746607855640,151.77373672,147.85,147.81,14.07373672]
[1746607856438,137.7,147.85,147.81,14.07373672]
[1746607856643,151.77373672,147.85,147.81,14.07373672]
[1746607856831,14.07373672,147.84,147.8,20.83943435]
[1746607857734,14.07373672,147.83,147.8,6.76569763]
[1746607859540,20.83831038,147.83,147.79,46.83990527]
[1746607859710,14.07373672,147.83,147.79,46.83990527]
[1746607860239,14.07373672,147.83,147.79,20.83990527]
[1746607860416,14.07373672,147.82,147.78,46.8403378]
[1746607864240,14.07373672,147.8,147.78,6.76660108]
[1746607866044,14.07373672,147.8,147.77,6.76727346]
[1746607866337,137.7,147.82,147.76,14.07373672]
[1746607866542,137.7,147.82,147.78,14.07373672]
[1746607866847,151.77373672,147.82,147.78,40.07373672]
[1746607867453,137.7,147.82,147.79,14.07373672]
[1746607867627,30.25373672,147.83,147.79,14.07373672]
[1746607867827,14.07373672,147.83,147.79,14.07373672]
[1746607868044,137.7,147.86,147.81,6.76544212]
[1746607868236,14.07373672,147.84,147.81,6.76544212]
[1746607868822,14.07373672,147.83,147.81,6.76544212]
[1746607870350,14.07373672,147.83,147.8,6.76589986]
[1746607871045,14.07373672,147.84,147.8,20.83963658]
[1746607872849,14.07373672,147.83,147.79,20.84009438]
[1746607873142,14.07373672,147.82,147.79,20.84009438]
[1746607874246,14.07373672,147.83,147.79,20.84009438]
[1746607877449,144.46333276,147.86,147.81,6.76544212]
[1746607877649,14.07373672,147.84,147.81,6.76544212]
[1746607887366,151.77373672,147.86,147.82,14.07373672]
[1746607887573,137.7,147.86,147.84,14.07373672]
[1746607887736,16.18,147.87,147.84,14.07373672]
[1746607887933,137.7,147.89,147.86,14.07373672]
[1746607888244,14.07373672,147.9,147.86,14.07373672]
[1746607888558,14.07373672,147.87,147.83,26.0]
[1746607888767,14.07373672,147.86,147.83,26.0]
[1746607889074,14.07373672,147.85,147.83,26.0]
[1746607889241,14.07373672,147.84,147.83,26.0]
[1746607890272,14.07373672,147.84,147.82,6.76478538]
[1746607890565,14.07373672,147.83,147.79,14.07373672]
[1746607890758,14.07373672,147.83,147.79,40.07373672]
[1746607891371,14.07373672,147.82,147.8,6.76569192]
[1746607891942,14.07373672,147.83,147.8,6.76569192]
[1746607893077,17.7893,147.86,147.8,20.83942864]
[1746607893243,14.07373672,147.85,147.81,14.07373672]
[1746607893443,30.23373672,147.86,147.82,14.07373672]
[1746607894565,14.07373672,147.86,147.82,14.07373672]
[1746607894971,137.7,147.87,147.8,23.68044158]
[1746607895176,137.7,147.87,147.84,20.83780598]
[1746607895340,30.23373672,147.89,147.85,14.07373672]
[1746607895541,151.77373672,147.9,147.86,14.07373672]
[1746607896369,14.07373672,147.89,147.85,14.07373672]
[1746607896564,137.7,147.9,147.85,14.07373672]
[1746607896753,14.07373672,147.89,147.85,14.07373672]
[1746607897270,14.07373672,147.89,147.86,6.76315433]
[1746607897673,151.77373672,147.9,147.86,20.83689105]
[1746607900467,137.7,147.9,147.86,6.76315433]
[1746607900777,151.77373672,147.9,147.86,20.83689105]
[1746607901948,14.07373672,147.89,147.86,6.76315433]
[1746607902148,14.07373672,147.88,147.86,6.76315433]
[1746607902363,14.07373672,147.87,147.81,18.55190669]
[1746607902546,14.07373672,147.85,147.82,14.07373672]
[1746607902746,14.07373672,147.85,147.84,26.0]
[1746607902948,14.07373672,147.86,147.84,26.0]
[1746607903162,14.07373672,147.85,147.82,6.76498444]
[1746607903469,14.07373672,147.86,147.82,20.83872116]
[1746607905073,14.07373672,147.87,147.83,14.07373672]
[1746607905258,137.7,147.88,147.86,14.07373672]
[1746607905453,137.7,147.91,147.86,14.07373672]
[1746607905639,14.07373672,147.9,147.86,14.07373672]
[1746607906967,14.07373672,147.9,147.85,46.83734848]
[1746607907182,14.07373672,147.89,147.85,32.76361176]
[1746607907473,14.07373672,147.88,147.85,32.76361176]
[1746607907966,158.534685,147.91,147.85,26.0]
[1746607908157,14.07373672,147.87,147.84,6.76390958]
[1746607910674,14.07373672,147.87,147.83,46.83806662]
[1746607910860,137.7,147.9,147.83,32.7643299]
[1746607910861,14.07373672,147.86,147.83,32.7643299]
[1746607911260,6.7625024,147.88,147.79,6.76635766]
[1746607911261,14.07373672,147.85,147.79,6.76635766]
[1746607911458,14.07373672,147.85,147.82,32.76498444]
[1746607913379,6.76281969,147.87,147.82,32.76498444]
[1746607913687,14.07373672,147.86,147.82,46.83872116]
[1746607919589,162.23396868,147.88,147.82,46.83872116]
[1746607919781,14.07373672,147.86,147.82,46.83872116]
[1746607920681,162.23396868,147.88,147.82,46.83872116]
[1746607920889,14.07373672,147.85,147.82,32.76498444]
[1746607922287,14.07373672,147.84,147.82,32.76498444]
[1746607922468,14.07373672,147.85,147.82,32.76498444]
[1746607922670,14.07373672,147.86,147.82,46.83872116]
[1746607922886,14.07373672,147.87,147.83,14.07373672]
[1746607924788,14.07373672,147.86,147.83,6.76412849]
[1746607926093,14.07373672,147.87,147.83,6.76412849]
[1746607927294,14.07373672,147.86,147.83,6.76412849]
[1746607931699,14.07373672,147.85,147.82,6.76493143]
[1746607931900,14.07373672,147.84,147.82,6.76493143]
[1746607933499,14.07373672,147.85,147.82,6.76493143]
[1746607934807,6.76290855,147.87,147.82,6.76493143]
[1746607935110,14.07373672,147.85,147.82,6.76493143]
[1746607937713,6.76290855,147.87,147.82,6.76493143]
[1746607938007,14.07373672,147.85,147.82,6.76493143]
[1746607942503,14.07373672,147.83,147.79,6.76635766]
[1746607942814,14.07373672,147.82,147.79,6.76635766]
[1746607943010,14.07373672,147.8,147.78,6.76669229]
[1746607944004,14.07373672,147.8,147.77,6.76727346]
[1746607944830,14.07373672,147.79,147.75,6.7681895]
[1746607944994,14.07373672,147.78,147.75,32.7681895]
[1746607945194,14.07373672,147.79,147.75,46.84192622]
[1746607946523,14.07373672,147.79,147.75,32.7681895]
[1746607948029,14.07373672,147.79,147.75,46.84192622]
[1746607950027,8.37229666,147.82,147.75,46.84192622]
[1746607950209,14.07373672,147.79,147.75,46.84192622]
[1746607953727,14.07373672,147.78,147.75,32.7681895]
[1746607955325,14.07373672,147.79,147.75,46.84192622]
[1746607955923,14.07373672,147.8,147.76,14.07373672]
[1746607956308,14.07373672,147.78,147.75,32.7681895]
[1746607956515,14.07373672,147.78,147.75,6.7681895]
[1746607957635,14.07373672,147.77,147.74,6.76864762]
[1746607960049,137.7,147.81,147.74,6.76864762]
[1746607960050,14.07373672,147.76,147.74,6.76864762]
[1746607960552,14.07373672,147.77,147.74,6.76864762]
[1746607961364,14.07373672,147.76,147.74,6.76864762]
[1746607963564,14.07373672,147.77,147.74,6.76864762]
[1746607965260,14.07373672,147.76,147.74,6.76864762]
[1746607970560,14.07373672,147.77,147.74,6.76864762]
[1746607973663,137.7,147.78,147.74,6.76864762]
[1746607974058,14.07373672,147.77,147.74,6.76864762]
[1746607975765,9.03959183,147.77,147.74,6.76864762]
[1746607980675,137.7,147.78,147.74,6.76864762]
[1746607980856,9.03959183,147.77,147.74,6.76864762]
[1746607982969,9.03959183,147.76,147.74,6.76864762]
[1746607983677,137.7,147.78,147.75,9.03959183]
[1746607983844,137.7,147.78,147.77,9.03959183]
[1746607984172,137.7,147.82,147.77,9.03959183]
[1746607984361,146.73959183,147.85,147.81,9.03959183]
[1746607985067,146.73959183,147.85,147.81,6.76522484]
[1746607985264,9.03959183,147.83,147.79,6.76619947]
[1746607985568,9.03959183,147.81,147.77,9.03959183]
[1746607985759,14.11727062,147.81,147.77,40.11727062]
[1746607986768,14.11727062,147.81,147.77,46.8842091]
[1746607986959,14.11727062,147.8,147.77,32.76693848]
[1746607990480,14.11727062,147.8,147.77,32.76693848]
[1746607993181,14.11727062,147.79,147.73,1.586]
[1746607993359,14.11727062,147.78,147.74,14.11727062]
[1746607994769,14.11727062,147.78,147.74,20.88591824]
[1746607994971,14.11727062,147.78,147.74,6.76864762]
[1746607995184,14.11727062,147.78,147.74,20.88591824]
[1746607995353,14.11727062,147.77,147.74,6.76864762]
[1746607998376,14.11727062,147.77,147.73,32.76891075]
[1746607998588,14.11727062,147.76,147.73,32.76891075]
[1746608000081,14.11727062,147.77,147.73,32.76891075]
[1746608001686,14.11727062,147.77,147.73,46.88618137]
[1746608001873,14.11727062,147.78,147.74,14.11727062]
[1746608004685,6.76652452,147.79,147.74,20.88589523]
[1746608004865,14.11727062,147.78,147.74,20.88589523]
[1746608005777,9.03879356,147.78,147.74,15.80741817]
[1746608005985,9.03879356,147.77,147.74,6.76862461]
[1746608010795,137.7,147.8,147.76,9.03879356]
[1746608010996,137.7,147.8,147.78,9.03879356]
[1746608011877,137.7,147.8,147.77,9.03879356]
[1746608013198,137.7,147.8,147.78,6.76681553]
[1746608015801,6.7646872,147.83,147.79,9.03879356]
[1746608015802,9.03879356,147.83,147.79,9.03879356]
[1746608016492,9.03879356,147.83,147.78,23.68385437]
[1746608016493,9.03879356,147.82,147.78,32.72264793]
[1746608016998,9.03879356,147.83,147.79,9.03879356]
[1746608019281,9.03879356,147.83,147.79,15.80472793]
[1746608020504,144.46418052,147.84,147.79,15.80472793]
[1746608020684,9.03879356,147.83,147.79,15.80472793]
[1746608021205,146.73879356,147.84,147.8,9.03879356]
[1746608021802,137.7,147.84,147.81,9.03879356]
[1746608023698,137.7,147.84,147.81,6.76504342]
[1746608023699,146.73879356,147.84,147.81,6.76504342]
[1746608024406,137.7,147.84,147.81,15.80383698]
[1746608025203,137.7,147.84,147.82,9.03879356]
[1746608025407,9.03879356,147.86,147.82,9.03879356]
[1746608026804,9.03879356,147.86,147.83,6.76452682]
[1746608031703,9.03879356,147.85,147.82,6.7647878]
[1746608032005,137.7,147.88,147.82,15.80358136]
[1746608032214,9.03879356,147.86,147.82,15.80358136]
[1746608033716,9.03879356,147.86,147.82,32.71604246]
[1746608033918,137.7,147.87,147.84,9.03879356]
[1746608034324,8.0673,147.93,147.86,9.03879356]
[1746608034638,9.03879356,147.91,147.87,9.03879356]
[1746608034991,146.73879356,147.92,147.87,9.03879356]
[1746608035721,151.79780287,147.92,147.87,14.09780287]
[1746608035905,151.79780287,147.92,147.88,6.76223965]
[1746608036499,137.7,147.92,147.88,20.86004252]
[1746608036708,151.79780287,147.92,147.88,20.86004252]
[1746608036918,14.09780287,147.91,147.88,6.76223965]
[1746608037223,14.09780287,147.91,147.87,20.86029998]
[1746608037621,137.7,147.92,147.87,20.86029998]
[1746608037923,137.7,147.92,147.89,14.09780287]
[1746608038101,151.79780287,147.92,147.88,20.85971105]
[1746608038497,137.7,147.92,147.89,14.09780287]
[1746608039526,137.7,147.92,147.89,20.85922498]
[1746608040631,137.7,147.92,147.89,6.76142211]
[1746608040820,151.79780287,147.92,147.89,6.76142211]
[1746608041531,14.09780287,147.91,147.87,14.09780287]
[1746608041717,14.09780287,147.89,147.85,14.09780287]
[1746608042029,14.09780287,147.86,147.82,6.76498444]
[1746608042322,14.09780287,147.86,147.8,14.09780287]
[1746608042323,14.09780287,147.84,147.8,26.0]
[1746608042528,14.09780287,147.84,147.8,40.09780287]
[1746608043025,14.09780287,147.83,147.82,26.0]
[1746608043208,14.09780287,147.85,147.82,26.0]
[1746608043401,137.7,147.87,147.83,6.76452682]
[1746608043722,151.79780287,147.87,147.83,20.86232969]
[1746608044427,137.7,147.87,147.83,20.86232969]
[1746608044628,151.79780287,147.87,147.83,20.86232969]
[1746608044928,137.7,147.87,147.84,14.09780287]
[1746608045730,137.7,147.87,147.83,6.76452682]
[1746608045931,137.7,147.87,147.84,14.09780287]
[1746608046233,151.79780287,147.87,147.83,14.09780287]
[1746608046528,14.09780287,147.86,147.82,37.77524841]
[1746608046915,137.7,147.87,147.84,26.0]
[1746608047118,151.79780287,147.87,147.84,26.0]
[1746608048705,151.79780287,147.87,147.84,32.76404957]
[1746608049114,137.7,147.87,147.84,46.86185244]
[1746608049320,16.1,147.89,147.86,14.09780287]
[1746608049609,137.7,147.9,147.87,14.09780287]
[1746608051144,137.7,147.9,147.86,14.09780287]
[1746608051439,151.79780287,147.9,147.86,14.09780287]
[1746608051738,137.7,147.9,147.87,14.09780287]
[1746608051941,137.7,147.9,147.88,14.09780287]
[1746608052850,137.7,147.9,147.87,20.86021927]
[1746608054942,137.7,147.9,147.88,14.09780287]
[1746608055350,137.7,147.9,147.89,14.09780287]
[1746608056851,137.7,147.9,147.89,20.85958527]
[1746608060045,137.7,147.9,147.88,20.86004252]
[1746608061247,30.19780287,147.93,147.89,14.09780287]
[1746608061942,16.1,147.93,147.9,26.0]
[1746608062123,30.19780287,147.93,147.91,6.76086809]
[1746608062647,30.19780287,147.93,147.9,32.76115137]
[1746608062855,14.09780287,147.92,147.9,32.76115137]
[1746608063749,16.1,147.93,147.9,46.85895424]
[1746608064643,16.1,147.93,147.91,14.09780287]
[1746608064943,137.7,147.94,147.92,14.09780287]
[1746608065142,14.09780287,147.96,147.92,14.09780287]
[1746608065346,14.09780287,147.95,147.91,14.09780287]
[1746608066846,14.09780287,147.95,147.92,6.76041103]
[1746608067243,14.09780287,147.96,147.92,20.8582139]
[1746608067421,31.72250287,147.97,147.93,14.09780287]
[1746608067625,16.08,147.97,147.94,14.09780287]
[1746608068030,30.17780287,147.97,147.93,14.09780287]
[1746608068754,14.09780287,147.96,147.92,37.75924148]
[1746608069346,14.09780287,147.96,147.92,20.8582139]
[1746608069645,14.09780287,147.95,147.92,6.76041103]
[1746608069849,14.09780287,147.96,147.94,26.0]
[1746608070224,30.17780287,147.97,147.94,26.0]
[1746608070630,16.08,147.97,147.94,26.0]
[1746608070932,30.17780287,147.97,147.94,26.0]
[1746608071139,14.09780287,147.95,147.94,26.0]
[1746608071344,14.09780287,147.95,147.92,6.76041103]
[1746608071648,14.09780287,147.94,147.92,32.76041103]
[1746608071825,14.09780287,147.95,147.92,32.76041103]
[1746608072225,174.63562541,147.98,147.92,32.76041103]
[1746608072450,14.09780287,147.95,147.92,32.76041103]
[1746608073050,14.09780287,147.96,147.94,32.75949709]
[1746608073247,137.7,147.97,147.94,32.75949709]
[1746608074741,137.7,147.97,147.94,46.85729996]
[1746608075253,137.7,147.97,147.94,32.75949709]
[1746608076346,151.79780287,147.97,147.94,32.75949709]
[1746608077044,137.7,147.97,147.94,46.85729996]
[1746608077245,137.7,147.97,147.94,63.75604269]
[1746608079255,30.17780287,147.98,147.94,63.75604269]
[1746608079460,14.09780287,147.97,147.94,49.65823982]
[1746608079959,14.09780287,147.97,147.94,32.75949709]
[1746608080153,30.17780287,147.98,147.94,46.85729996]
[1746608080359,14.09780287,147.96,147.94,32.75949709]
[1746608081255,14.09780287,147.96,147.93,20.85740381]
[1746608081458,14.09780287,147.96,147.93,6.75960094]
[1746608082360,16.08,147.98,147.95,6.75904021]
[1746608082566,16.08,147.98,147.95,20.85684308]
[1746608082952,30.17780287,147.98,147.95,6.75904021]
[1746608083864,30.17780287,147.98,147.95,32.75904021]
[1746608086073,14.09780287,147.99,147.97,26.0]
[1746608086370,167.87780287,148.0,147.97,26.0]
[1746608086865,14.09780287,147.99,147.95,20.85684308]
[1746608087171,14.09780287,147.99,147.95,37.75444362]
[1746608087761,14.09780287,147.97,147.95,6.75904021]
[1746608088287,14.09780287,147.98,147.95,6.75904021]
[1746608088674,14.09780287,147.97,147.95,6.75904021]
[1746608088873,14.09780287,147.98,147.95,6.75904021]
[1746608089082,160.53675954,148.0,147.96,14.09780287]
[1746608089083,167.87780287,148.0,147.96,14.09780287]
[1746608089668,167.87780287,148.0,147.97,6.75812664]
[1746608090076,14.09780287,147.99,147.97,6.75812664]
[1746608090884,153.78,148.0,147.97,6.75812664]
[1746608091059,14.09780287,147.99,147.97,6.75812664]
[1746608092680,151.79780287,148.0,147.97,6.75812664]
[1746608095683,151.79780287,148.0,147.99,26.0]
[1746608095886,137.7,148.0,147.99,26.0]
[1746608096769,137.7,148.0,147.99,32.75721332]
[1746608096982,14.09780287,148.03,147.99,46.85501619]
[1746608097185,167.85780287,148.04,148.0,14.09780287]
[1746608100096,167.85780287,148.04,148.01,6.75630024]
[1746608100270,137.7,148.04,148.01,6.75630024]
[1746608100472,14.09780287,148.03,148.01,6.75630024]
[1746608101087,137.7,148.04,148.01,6.75630024]
[1746608101382,151.79780287,148.04,148.01,6.75630024]
[1746608101969,14.09780287,148.03,148.01,6.75630024]
[1746608102188,14.09780287,148.02,147.97,6.75812664]
[1746608102492,14.09780287,148.0,147.97,6.75812664]
[1746608104194,14.4898238,148.03,147.97,20.85592951]
[1746608104195,14.09780287,148.01,147.97,20.85592951]
[1746608105794,14.09780287,148.0,147.97,6.75812664]
[1746608106292,14.09780287,148.01,147.99,26.0]
[1746608106467,14.09780287,148.0,147.97,6.75812664]
[1746608107295,14.09780287,148.01,147.97,20.85592951]
[1746608107683,14.09780287,148.01,147.97,6.75812664]
[1746608107882,14.09780287,148.01,147.97,20.85592951]
[1746608109096,14.09780287,148.0,147.97,6.75812664]
[1746608110185,14.09780287,148.01,147.97,20.85592951]
[1746608110797,14.09780287,148.0,147.97,6.75812664]
[1746608112300,151.79780287,148.02,147.99,26.0]
[1746608112700,14.09780287,148.01,147.99,26.0]
[1746608113081,14.09780287,148.01,147.97,20.85592951]
[1746608113412,14.09780287,148.0,147.97,6.75812664]
[1746608114076,14.09780287,148.01,147.97,20.85592951]
[1746608115415,151.79780287,148.02,147.97,20.85592951]
[1746608116093,14.09780287,148.01,147.97,20.85592951]
[1746608116807,151.79780287,148.02,147.97,37.75124612]